Cogmind - Beta 13 @@@ ROGUE MODE // 2024.04.14 @ 19:47:26 Player: Harvey Danger Result: Destroyed by D-53 Grenadier with Mini Grenade Launcher Performance ------------- Evolutions (1) 500 Regions Visited (3) 600 Robots Destroyed (26) 130 Value Destroyed (467) 467 Prototype IDs (2) 40 Alien Tech Used (0) 0 Bonus (0) 0 TOTAL SCORE: 1737 Bonus ------- None Cogmind --------- Core Integrity 0/400 Matter 258/300 Energy 29/100 System Corruption 0% Temperature Cool (18) Movement Core (700) Ox13 Location -9/Mines Parts ------- > --- POWER (1) -------- (None) > --- PROPULSION (2) --- (None) > --- UTILITY (4) ------ High-capacity Storage Unit Visual Processing Unit Improved Signal Interpreter > --- WEAPON (2) ------- (None) > --- INVENTORY (20) --- Wheel Wheel Armored Wheel Light EM Pulse Cannon Light EM Pulse Cannon Assault Rifle Assault Rifle Peak State ------------ > --- POWER ------------ Heavy Ion Engine > --- PROPULSION ------- Wheel Wheel > --- UTILITY ---------- Cooling System High-capacity Storage Unit Visual Processing Unit Improved Signal Interpreter > --- WEAPON ----------- Heavy Particle Gun Heavy Particle Gun > --- INVENTORY -------- Ion Engine Light Ion Engine Improved Ion Engine Wheel Wheel Compact Wheel Compact Wheel Armored Wheel Light Armor Plating Beam Rifle Light EM Pulse Cannon Light EM Pulse Cannon Assault Rifle Assault Rifle Rocket Launcher [Rating: 23] Favorites ----------- Power Ion Engine Engine Ion Engine Propulsion Wheel Wheel Wheel Utility High-capacity Storage Unit Device Cooling System Storage High-capacity Storage Unit Processor Visual Processing Unit Protection Light Armor Plating Weapon Heavy Particle Gun Energy Gun Heavy Particle Gun Ballistic Gun Assault Rifle Launcher Rocket Launcher Build | -11 -10 -9 -9 ------- Run | Yrd Mat Mat Min Slots Evolved 2 | . . 2 . Power . | . . . . Propulsion . | . . . . Utility 2 | . . 2 . Weapon . | . . . . Parts Attached 22 | 6 2 8 6 Power 4 | 1 . 2 1 Engine 4 | 1 . 2 1 Core . | . . . . Reactor . | . . . . Propulsion 6 | 2 . 2 2 Treads . | . . . . Leg . | . . . . Wheel 6 | 2 . 2 2 Hover . | . . . . Flight . | . . . . Utility 6 | 1 2 2 1 Device 1 | . . 1 . Storage 2 | 1 1 . . Processor 2 | . 1 1 . Hackware . | . . . . Protection 1 | . . . 1 Artifact . | . . . . Weapon 6 | 2 . 2 2 Energy Gun 3 | . . 2 1 Energy Cannon . | . . . . Ballistic Gun 2 | 2 . . . Ballistic Cannon . | . . . . Launcher 1 | . . . 1 Special Weapon . | . . . . Impact Weapon . | . . . . Slashing Weapon . | . . . . Piercing Weapon . | . . . . Special Melee Weapon . | . . . . Unidentified Prototypes 2 | . . 2 . Parts Lost 15 | . . 3 12 Power 3 | . . 1 2 Propulsion 6 | . . 2 4 Utility 2 | . . . 2 Weapon 4 | . . . 4 Highest Loss Streak 12 | . . 1 12 To Critical Strikes . | . . . . Average Slot Usage (%) 89 | . 87 92 75 Engine 11 | . 14 11 6 Wheel 21 | . 28 20 11 Device 5 | . . 7 6 Storage 11 | . 14 11 11 Processor 15 | . 2 19 22 Energy Gun 12 | . . 17 15 Ballistic Gun 10 | . 28 4 . Naked Turns . | . . . . Heaviest Build 56 | 14 49 56 56 Greatest Support 26 | 26 26 26 20 Greatest Overweight (x) 4 | . 1 4 2 Average Overweight (x) 1 | . . 2 2 Largest Inventory Capacity 20 | 8 20 20 20 Average Capacity 17 | 7 15 20 20 Most Carried 15 | 5 8 15 13 Average Carried 7 | 1 4 9 11 Final Capacity 20 | 8 20 20 20 Final Carried 13 | 2 8 13 7 Class Distribution -------------------- 100% | Mutant Dominant Class ---------------- Mutant | -10/Materials Mutant | -9/Materials Mutant | -9/Mines Resources | -11 -10 -9 -9 ----------- Run | Yrd Mat Mat Min Matter Collected 546 | 175 162 209 . Remotely . | . . . . Salvage Created 989 | . 162 746 81 Parts 52 | . 13 39 . Haulers Intercepted 2 | . . 2 . Recyclers Shooed 2 | . 1 1 . Parts Field Recycled . | . . . . Retrieved Matter . | . . . . Parts Self-Destructed . | . . . . Prevented . | . . . . Kills | -11 -10 -9 -9 ------- Run | Yrd Mat Mat Min Combat Hostiles Destroyed 20 | . 4 11 5 Guns 20 | . 4 11 5 Classes Destroyed 9 | . 4 4 1 Worker 4 | . 3 1 . Builder 1 | . . 1 . Hauler 2 | . . 2 . Recycler 3 | . . 3 . Watcher 1 | . 1 . . Swarmer 6 | . 3 3 . Grunt 5 | . 1 4 . Sentry 4 | . . 4 . Assembled 5 | . . . 5 Best Kill Streak 8 | . 6 8 5 Combat Bots Only 5 | . 2 4 5 Max Kills in Single Turn 2 | . 1 1 2 Gunslinging 1 | . . . 1 Exploded . | . . . . Melee . | . . . . Uniques/NPCs Destroyed . | . . . . Combat | -11 -10 -9 -9 -------- Run | Yrd Mat Mat Min Hostile Shots Fired 155 | . 31 45 79 Missed 44 | . 8 20 16 Damage Taken 1616 | . 190 264 1162 Core 499 | . 85 48 366 Absorbed by Shields . | . . . . Core Remaining (%) 83 | 100 66 . . Volleys Fired 79 | . 18 52 9 Largest 2 | . 2 2 2 Hottest 111 | . 40 110 111 Shots Fired 158 | . 36 104 18 Gun 156 | . 36 104 16 Cannon . | . . . . Launcher 2 | . . . 2 Special . | . . . . Kinetic 62 | . 36 26 . Thermal 94 | . . 78 16 Explosive 2 | . . . 2 Electromagnetic . | . . . . Robot Hit Streak 7 | . 5 7 4 Robot Miss Streak 6 | . 4 6 4 Penetration Max . | . . . . Secondary Targets 7 | . 2 2 3 Max Gunslinging Chain 1 | . 1 1 1 Shots Hit Robots 85 | . 19 57 9 Core Hits 40 | . 10 21 9 Critical Kills . | . . . . Critical Parts Destroyed 1 | . 1 . . Critical Strikes 3 | . 1 1 1 Burn 2 | . . 1 1 Destroy 1 | . 1 . . Melee Attacks . | . . . . Impact . | . . . . Slashing . | . . . . Piercing . | . . . . Sneak Attacks . | . . . . Combat Hostiles . | . . . . Follow-up Attacks . | . . . . Damage Inflicted 1505 | . 275 1003 227 Guns 1477 | . 275 1003 199 Cannons . | . . . . Explosions 28 | . . . 28 Melee . | . . . . Ramming . | . . . . Kinetic 447 | . 275 172 . Thermal 1030 | . . 831 199 Explosive 28 | . . . 28 Electromagnetic . | . . . . Impact . | . . . . Slashing . | . . . . Piercing . | . . . . Highest Corruption . | . . . . Average Corruption . | . . . . Corruption Purged . | . . . . Corruption Blocked . | . . . . Overload Shots . | . . . . Overflow Damage . | . . . . Projectiles . | . . . . Explosions . | . . . . Melee . | . . . . Knockbacks . | . . . . Impact . | . . . . Kinetic . | . . . . Secondary . | . . . . Self-Inflicted Damage . | . . . . Shots . | . . . . Rammed . | . . . . Targets Rammed . | . . . . Kicked . | . . . . Crushed . | . . . . Highest Temperature 174 | . 2 174 40 Average Temperature 49 | . 2 81 18 Received Heat Transfer 332 | . 48 84 200 Siege Activations . | . . . . Robots Corrupted . | . . . . Combat Hostiles . | . . . . Parts Fried . | . . . . Impact Corruptions . | . . . . Robots Melted . | . . . . Combat Hostiles . | . . . . Parts Melted 3 | . . 3 . Heat Transferred 2220 | . . 1739 481 Parts Sabotaged . | . . . . Parts Stolen . | . . . . Parts Stripped . | . . . . Power Chain Reactions . | . . . . Alert | -11 -10 -9 -9 ------- Run | Yrd Mat Mat Min Peak Influence 399 | . 152 399 154 Initial 154 | . . 63 154 Average 176 | . 66 260 122 Maximum Alert Level 1 | . . 1 . Low Security (%) 59 | 100 100 28 100 Level 1 40 | . . 71 . Level 2 . | . . . . Level 3 . | . . . . Level 4 . | . . . . Level 5 . | . . . . High Security . | . . . . Max Security . | . . . . Squads Dispatched 3 | . 1 2 . Investigation 1 | . . 1 . Extermination . | . . . . Reinforcement 2 | . 1 1 . Assault . | . . . . Garrison . | . . . . Intercept . | . . . . Searches Triggered . | . . . . Construction Impeded 1 | . . 1 . Haulers Reinforced . | . . . . Active Scanning Responses . | . . . . Cargo Convoy Interrupts . | . . . . Stealth | -11 -10 -9 -9 --------- Run | Yrd Mat Mat Min Distress Signals 3 | . 1 2 . Communications Jammed . | . . . . Distress Signals . | . . . . Times Spotted 33 | . 8 12 13 Peak Tracking Total 13 | . 4 5 13 Tactical Retreats 2 | . 1 . 1 Traps | -11 -10 -9 -9 ------- Run | Yrd Mat Mat Min Traps Triggered 1 | . . 1 . Indirectly . | . . . . Trap Hack Attempts . | . . . . Triggered . | . . . . Disarmed . | . . . . Reprogrammed . | . . . . Reused . | . . . . Traps Extracted . | . . . . Installed . | . . . . Triggered . | . . . . Machines | -11 -10 -9 -9 ---------- Run | Yrd Mat Mat Min Machines Disabled 1 | . . 1 . Max in Single Turn 1 | . . 1 . Machines Repaired . | . . . . Machines Dismantled . | . . . . Machines Sabotaged . | . . . . Overloaded Fab Kills . | . . . . Hacking | -11 -10 -9 -9 --------- Run | Yrd Mat Mat Min Machines Accessed . | . . . . Terminals . | . . . . Fabricators . | . . . . Repair Stations . | . . . . Recycling Units . | . . . . Scanalyzers . | . . . . Garrison Access . | . . . . Total Hacks . | . . . . Successful . | . . . . Failed . | . . . . Catastrophic . | . . . . Database Lockouts . | . . . . Manual . | . . . . Terminals . | . . . . Fabricators . | . . . . Repair Stations . | . . . . Recycling Units . | . . . . Scanalyzers . | . . . . Garrison Access . | . . . . Terminal Hacks . | . . . . Fabricator Hacks . | . . . . Repair Station Hacks . | . . . . Recycling Unit Hacks . | . . . . Scanalyzer . | . . . . Garrison Access Hacks . | . . . . Unauthorized Hacks . | . . . . Terminals . | . . . . Fabricators . | . . . . Repair Stations . | . . . . Recycling Units . | . . . . Scanalyzers . | . . . . Garrison Access . | . . . . Data Cores Recovered . | . . . . Used . | . . . . Hacking Detections . | . . . . Full Trace Events . | . . . . Feedback Events . | . . . . Feedback Blocked . | . . . . Robot Schematics Acquired . | . . . . Robots Built . | . . . . Authchips . | . . . . Time . | . . . . Total Robot Build Rating . | . . . . Part Schematics Acquired . | . . . . Parts Built . | . . . . Authchips . | . . . . Time . | . . . . Total Part Build Rating . | . . . . Parts Repaired . | . . . . Time . | . . . . Parts Recycled . | . . . . Recycled Matter . | . . . . Retrieved Matter . | . . . . Retrieved Components . | . . . . Parts Scanalyzed . | . . . . Part Schematics Acquired . | . . . . Parts Damaged . | . . . . Bothacking | -11 -10 -9 -9 ------------ Run | Yrd Mat Mat Min Used RIF Installer . | . . . . Robots Hacked . | . . . . Non-combat . | . . . . Combat . | . . . . Robot Hacks Applied . | . . . . Relay Couplers Released . | . . . . Fabnet Peak Effective % . | . . . . Robots Rewired . | . . . . Allies Hacked . | . . . . Hacks Repelled . | . . . . Allies | -11 -10 -9 -9 -------- Run | Yrd Mat Mat Min Total Allies . | . . . . Largest Group . | . . . . Highest-Rated Group . | . . . . Highest-Rated Ally . | . . . . Total Orders . | . . . . Ally Attacks . | . . . . Total Damage . | . . . . Kills . | . . . . Allies Corrupted . | . . . . Allies Melted . | . . . . Intel | -11 -10 -9 -9 ------- Run | Yrd Mat Mat Min Robot Analysis Total . | . . . . Derelict Logs Recovered . | . . . . Drone Launches . | . . . . Drone Recoveries . | . . . . Exploration | -11 -10 -9 -9 ------------- Run | Yrd Mat Mat Min Turns Passed 619 | 57 158 356 48 Spaces Moved 314 | 53 95 156 10 Core 11 | 11 . . . Treads . | . . . . Legs . | . . . . Wheels 303 | 42 95 156 10 Hover . | . . . . Flight . | . . . . Fastest Speed 50 | 50 90 105 110 Average Speed 102 | 81 98 112 110 Slowest Speed 140 | 90 105 140 110 Overloaded Moves . | . . . . Propulsion Burnouts . | . . . . Robots Hopped . | . . . . Cave-ins Triggered . | . . . . Exploration Rate (%) 16 | 4 22 29 9 Regions Visited 3 Branch Regions 1 Pre-discovered Areas . | . . . . Known Exits Taken 1 | . . 1 . Unknown Exits Taken 2 | 1 1 . . Scrap Searched . | . . . . Spaces Dug . | . . . . Terrain Destroyed 24 | . . . 24 Melee . | . . . . Projectile . | . . . . AOE 24 | . . . 24 Terrain Rammed . | . . . . Walls Destroyed . | . . . . Machines Disabled . | . . . . Actions | -11 -10 -9 -9 --------- Run | Yrd Mat Mat Min Total 450 | 66 123 232 29 Wait 4 | . . . 4 Move 311 | 52 94 155 10 Hop . | . . . . Pick Up 29 | 8 8 13 . Fast Attach . | . . . . Attach 18 | 6 1 5 6 Detach . | . . . . Swap 5 | . 1 4 . Drop 4 | . 1 3 . Fire 79 | . 18 52 9 Melee . | . . . . Ram . | . . . . Kick . | . . . . Crush . | . . . . Escape Stasis . | . . . . Rewire . | . . . . Trap . | . . . . Miscellaneous . | . . . . Route ------- -11/Scrapyard -10/Materials -9/Materials -9/Mines History --------- Turn | Location | Event 36 | -11/Scrapyard | Discovered new exit (range 13) 58 | -11/Scrapyard | Entered Materials 129 | -10/Materials | Discovered new exit (range 15) 216 | -10/Materials | Entered another Materials area 216 | -9/Materials | Evolved 2 slots: Utility x2 316 | -9/Materials | Build established: Mutant 554 | -9/Materials | Discovered new exit (range 15) 571 | -9/Materials | Identified exit to Mines 572 | -9/Materials | Entered Mines 573 | -9/Mines | Assembled infested the area 608 | -9/Mines | Core integrity fell below 50% 620 | -9/Mines | Core integrity fell below 20% 620 | -9/Mines | Destroyed by D-53 Grenadier with Mini Grenade Launcher Last Messages --------------- 00595_ Hvy. Ion Engine destroyed. 00598_ Hvy. Particle Gun destroyed. 00599_ as-79998 destroyed. 00599_ Switching to secondary target: as-92349. 00602_ Destroyed Asb. F-torch. 00604_ Hvy. Particle Gun destroyed. 00604_ Cooling System destroyed. 00607_ C-30 ARC bursts open, deploying its payload. 00607_ D-53 Grenadier unfolds itself. 00607_ as-92349 destroyed. 00607_ as-03623 destroyed. 00614_ The unstable cave ceiling collapses. 00615_ Imp. Ion Engine destroyed. 00616_ Com. Wheel destroyed. 00616_ Lgt. Armor Plating destroyed. 00618_ Com. Wheel destroyed. 00619_ Beam Rifle destroyed. 00620_ The unstable cave ceiling collapses. 00620_ Rocket Launcher destroyed. Map ----- +----------------------------------------------------+ | ?????????????????????????????????????????????????? | | ?????????????????????????????????????????????????? | | ?????????????????????????????????????????????????? | | ?????????????????????????????????????????????????? | | ?????????????????????????????????????????????????? | | ?????????????????????????????????????????????????? | | ?????????????????????????????????????????????????? | | ?????????????????????????????????????????????????? | | ?????????????????????????????????????????????????? | | ?????????????????????????????????????????????????? | | ??????????????????????#??????????????????????????? | | ??????????????????????# ?????????????????????????? | | ??????????????????????# ?????????????????????????? | | ??????????????????????# ?####????????????????????? | | ??????????????????????# # #????????????????????? | | ??????????????????????# ????????????????????? | | ?????????????????????##% ##???????????????????? | | ????????????????????? #???????????????????? | | ?????????????????????# d ????????????????????? | | ???????????????????### d ????????????????????? | | ?????????????#?????# ##???????????????????? | | ?????????##### ??## #???????????????????? | | ????????? ## ##??????????????????? | | ???????? #??????????????????? | | ???????? a a a #??????????????????? | | ??????????????# @ #??????????????????? | | ???????????????# ##??????????????????? | | ???????????????#### #??????????????????? | | ??????????????????### # # ##??????????????????? | | ????????????????????# #???????????????????? | | ????????????????????###### ##???????????????????? | | ?????????????????????????# #????????????????????? | | ????????????????????????## #????????????????????? | | ???????????????????????## ##???????????????????? | | ???????????????????????# ##??????????????????? | | ???????????????????????# #??????????????????? | | ???????????????????????# #??????????????????? | | ???????????????????????# #??????????????????? | | ???????????????????????# ##??????????????????? | | ???????????????????????# ##???????????????????? | | ???????????????????????## ##????????????????????? | | ????????????????????????###??????????????????????? | | ?????????????????????????????????????????????????? | | ?????????????????????????????????????????????????? | | | | | | | | | | | | | +----------------------------------------------------+ Best States ------------- Heat Dissipation 50 Energy Generation 14 Energy Capacity 280 Matter Stores 300 Matter Capacity 300 Sight Range 18 Terrain Scan Density 10 Evasion (%) 50 Item Schematics ----------------- None Robot Schematics ------------------ None Fabricated ------------ Nothing Alien Tech Used ----------------- None Achievements -------------- None Challenges ------------ None Game ------ Seed FieldGammaConstruct Manual? 0 Play Time 00:10:36 Cumulative 13.2 hours Start 2024.04.14 @ 19:38:07 End 2024.04.14 @ 19:47:26 Sessions 1 Manual Loads 0 Difficulty Rogue Special Mode None Game No. 13 Rogue 13 Adventurer 0 Explorer 0 Win Type - Total 0 Types 0/0/0/0/0/0/0/0/0 Lore% 6 Gallery% 26 Achievement% 17 Wizard Run 0 Options --------- Layout 1 ASCII 0 Keyboard 0 Movement Mouse Keybinds 0 Fullscreen 1 Font 24/Smallcaps Map View 50x35 Zoom Use 0% Tactical HUD 1 Map Filters NONE Filters NONE Steam 1 RUN: a630869a-c690-408e-a4cc-af7ac9f4ffbb